[Event "FIDE World Cup O12-B 2024"]
[Site "Batumi"]
[Date "2024.06.23"]
[Round "1.1"]
[White "Martinez Flores, Matias"]
[Black "Yusupov, Rauf"]
[Result "0-1"]
[ECO "C45"]
[WhiteElo "2080"]
[BlackElo "1800"]
[Annotator "NA RC"]
[PlyCount "68"]
[EventDate "2024.06.23"]
[EventType "swiss"]
[EventCountry "GEO"]
[SourceTitle "playchess.com"]
[Source "ChessBase"]
[SourceQuality "1"]
[TimeControl "5400+30"]

1. e4 {[%emt 0:00:03]} e5 {[%emt 0:00:04]} 2. Nf3 {[%emt 0:00:06]} Nf6 {[%emt 0:00:04]} 3. Nc3 {[%emt 0:00:05]} Nc6 {[%emt 0:00:04]} 4. d4 {[%emt 0:00:05]} exd4 {[%emt 0:00:50]} 5. Nxd4 {[%emt 0:00:10]} Nxd4 {[%emt 0:01:28]} 6. Qxd4 {[%emt 0:00:11]} b6 {[%emt 0:01:04]} 7. Bg5 {[%emt 0:05:01]} Bc5 {[%emt 0:02:17]} 8. Qd2 {[%emt 0:00:08]} h6 {[%emt 0:07:53]} 9. Be3 {[%emt 0:17:48]} Bb4 {[%emt 0:05:13]} 10. f3 {[%emt 0:00:12]} Bb7 {[%emt 0:02:21]} 11. a3 {[%emt 0:01:47]} Bd6 {[%emt 0:09:43]} 12. O-O-O {[%emt 0:04:45]} Qe7 {[%emt 0:02:42]} 13. Nb5 {[%emt 0:02:01]} Be5 {[%emt 0:01:16]} 14. Bd4 {[%emt 0:06:16]} a6 {[%emt 0:02:36]} 15. Bxe5 {[%emt 0:05:22]} Qxe5 {[%emt 0:00:09]} 16. Nd4 {[%emt 0:00:41]} O-O-O {[%emt 0:00:15]} 17. Bc4 {[%emt 0:09:47]} d5 {[%emt 0:03:35]} 18. exd5 {[%emt 0:20:15]} Nxd5 {[%emt 0:00:17]} 19. Bxd5 {[%emt 0:05:24]} Rxd5 {[%emt 0:00:55]} 20. f4 {[%emt 0:03:23]} Qf6 {[%emt 0:01:28]} 21. Qf2 {[%emt 0:03:13]} Rhd8 {[%emt 0:01:55]} 22. c3 {[%emt 0:02:38]} Qd6 {[%emt 0:01:23]} 23. Rd2 {[%emt 0:02:05]} c5 {[%emt 0:04:17]} 24. Nf5 {[%emt 0:01:45]} Qf6 {[%emt 0:13:03]} 25. Rxd5 {[%emt 0:00:09]} Rxd5 {[%emt 0:00:15]} 26. Ne3 {[%emt 0:00:04]} Rd7 {[%emt 0:00:27]} 27. Ng4 {[%emt 0:03:04]} Qe6 {[%emt 0:03:08]} 28. Ne5 {[%emt 0:01:46]} Rd8 {[%emt 0:02:43]} 29. Re1 {[%emt 0:02:27]} f6 {[%emt 0:08:25]} 30. Ng6 {[%emt 0:02:05]} Be4 {[%emt 0:01:00]} 31. f5 {[%emt 0:01:48]} Qa2 {[%emt 0:00:17]} 32. Ne7+ {[%emt 0:00:24]} Kb7 {[%emt 0:00:25]} 33. Rxe4 {[%emt 0:01:17]} Qa1+ {[%emt 0:00:01]} 34. Kc2 {[%emt 0:00:09]} Qd1# {[%emt 0:00:04]} 0-1

[Event "FIDE World Cup O12-B 2024"]
[Site "Batumi"]
[Date "2024.06.23"]
[Round "1.2"]
[White "Akhmet, Suleyman"]
[Black "Kakavand, Ramtin"]
[Result "1/2-1/2"]
[ECO "D13"]
[WhiteElo "1793"]
[BlackElo "2059"]
[Annotator "NA RC"]
[PlyCount "52"]
[EventDate "2024.06.23"]
[EventType "swiss"]
[EventCountry "GEO"]
[SourceTitle "playchess.com"]
[Source "ChessBase"]
[SourceQuality "1"]
[TimeControl "5400+30"]

1. d4 {[%emt 0:00:04]} d5 {[%emt 0:00:05]} 2. c4 {[%emt 0:00:09]} c6 {[%emt 0:00:04]} 3. cxd5 {[%emt 0:00:04]} cxd5 {[%emt 0:00:07]} 4. Bf4 {[%emt 0:00:20]} Nc6 {[%emt 0:00:09]} 5. e3 {[%emt 0:01:16]} Nf6 {[%emt 0:00:09]} 6. Nc3 {[%emt 0:00:15]} a6 {[%emt 0:00:07]} 7. Be2 {[%emt 0:07:24]} Bf5 {[%emt 0:02:49]} 8. Nf3 {[%emt 0:02:12]} e6 {[%emt 0:01:43]} 9. Qb3 {[%emt 0:14:41]} Nh5 {[%emt 0:00:10]} 10. Bg5 {[%emt 0:27:24]} f6 {[%emt 0:07:58]} 11. Bh4 {[%emt 0:01:36]} Nb4 {[%emt 0:00:22]} 12. Rc1 {[%emt 0:03:10]} g5 {[%emt 0:58:04]} 13. Nxg5 {[%emt 0:20:44]} fxg5 {[%emt 0:00:19]} 14. Bxh5+ {[%emt 0:00:08]} Bg6 {[%emt 0:00:13]} 15. Bxg6+ {[%emt 0:00:11]} hxg6 {[%emt 0:00:02]} 16. Bg3 {[%emt 0:00:08]} Nd3+ {[%emt 0:00:06]} 17. Kd2 {[%emt 0:04:15]} Nxc1 {[%emt 0:00:09]} 18. Qxb7 {[%emt 0:01:01]} Qc8 {[%emt 0:06:55]} 19. Qb6 {[%emt 0:01:16]} Nd3 {[%emt 0:04:56]} 20. Kxd3 {[%emt 0:00:19]} Rh7 {[%emt 0:00:10]} 21. Rc1 {[%emt 0:08:10]} Rb7 {[%emt 0:12:41]} 22. Nxd5 {[%emt 0:01:57]} Qxc1 {[%emt 0:03:35]} 23. Nf6+ {[%emt 0:04:32]} Kf7 {[%emt 0:00:07]} 24. Qxb7+ {[%emt 0:00:07]} Be7 {[%emt 0:00:05]} 25. Qxa8 {[%emt 0:00:53]} Qd1+ {[%emt 0:00:11]} 26. Kc3 {[%emt 0:00:19]} Qc1+ {[%emt 0:00:35]} 1/2-1/2

[Event "FIDE World Cup O12-B 2024"]
[Site "Batumi"]
[Date "2024.06.23"]
[Round "1.3"]
[White "Diaz Guerrero, Jesus Daniel"]
[Black "Ambartsumyan, Yuri"]
[Result "0-1"]
[ECO "C12"]
[WhiteElo "2032"]
[BlackElo "1750"]
[Annotator "NA RC"]
[PlyCount "127"]
[EventDate "2024.06.23"]
[EventType "swiss"]
[EventCountry "GEO"]
[SourceTitle "playchess.com"]
[Source "ChessBase"]
[SourceQuality "1"]
[TimeControl "5400+30"]

1. e4 {[%emt 0:00:15]} e6 {[%emt 0:00:02]} 2. d4 {[%emt 0:00:13]} d5 {[%emt 0:00:03]} 3. Nc3 {[%emt 0:00:21]} Nf6 {[%emt 0:00:04]} 4. Bg5 {[%emt 0:00:08]} Bb4 {[%emt 0:00:21]} 5. e5 {[%emt 0:00:11]} h6 {[%emt 0:00:04]} 6. Bd2 {[%emt 0:00:17]} Bxc3 {[%emt 0:00:07]} 7. bxc3 {[%emt 0:00:05]} Ne4 {[%emt 0:00:06]} 8. Qg4 {[%emt 0:00:59]} Kf8 {[%emt 0:00:06]} 9. Bd3 {[%emt 0:02:43]} Nxd2 {[%emt 0:04:11]} 10. Kxd2 {[%emt 0:00:08]} c5 {[%emt 0:00:13]} 11. h4 {[%emt 0:01:30]} Nc6 {[%emt 0:00:09]} 12. Qf4 {[%emt 0:00:08]} c4 {[%emt 0:03:51]} 13. Bg6 {[%emt 0:00:12]} Qe7 {[%emt 0:00:40]} 14. a4 {[%emt 0:00:19]} h5 {[%emt 0:13:35]} 15. Qf3 {[%emt 0:02:05]} Kg8 {[%emt 0:03:54]} 16. Bxh5 {[%emt 0:00:09]} g6 {[%emt 0:00:02]} 17. Bg4 {[%emt 0:02:22]} Rxh4 {[%emt 0:00:10]} 18. Rxh4 {[%emt 0:26:03]} Qxh4 {[%emt 0:00:05]} 19. g3 {[%emt 0:00:05]} Qg5+ {[%emt 0:02:30]} 20. Ke2 {[%emt 0:02:59]} Bd7 {[%emt 0:13:19]} 21. Nh3 {[%emt 0:02:34]} Qe7 {[%emt 0:01:47]} 22. Rh1 {[%emt 0:06:01]} Kg7 {[%emt 0:01:00]} 23. Qf4 {[%emt 0:03:19]} Rh8 {[%emt 0:00:25]} 24. Bf3 {[%emt 0:03:04]} f6 {[%emt 0:19:46]} 25. g4 {[%emt 0:20:46]} fxe5 {[%emt 0:08:38]} 26. dxe5 {[%emt 0:00:05]} Qf8 {[%emt 0:00:46]} 27. Qg5 {[%emt 0:01:36]} Qd8 {[%emt 0:01:21]} 28. Qf4 {[%emt 0:01:24]} Qf8 {[%emt 0:16:48]} 29. Qg5 {[%emt 0:01:32]} Qd8 {[%emt 0:05:04]} 30. Qf4 {[%emt 0:00:07]} Rf8 {[%emt 0:02:56]} 31. Qe3 {[%emt 0:00:43]} Qb6 {[%emt 0:00:19]} 32. Qg5 {[%emt 0:04:02]} Qc7 {[%emt 0:00:27]} 33. Bg2 {[%emt 0:01:30]} Qxe5+ 34. Qxe5+ {[%emt 0:00:01]} Nxe5 {[%emt 0:00:27]} 35. Ng5 {[%emt 0:02:22]} Rh8 {[%emt 0:00:09]} 36. Rb1 {[%emt 0:00:25]} b6 {[%emt 0:00:19]} 37. a5 {[%emt 0:01:13]} b5 {[%emt 0:05:16]} 38. f4 {[%emt 0:00:45]} Nxg4 {[%emt 0:00:00]} 39. Bh3 {[%emt 0:00:32]} Nf6 {[%emt 0:00:00]} 40. Kf3 {[%emt 0:03:20]} Ne4 {[%emt 0:00:00]} 41. Nxe4 {[%emt 0:01:03]} Rxh3+ {[%emt 0:00:00]} 42. Kg2 {[%emt 0:00:27]} Re3 {[%emt 0:00:00]} 43. Nc5 {[%emt 0:00:07]} Bc6 {[%emt 0:00:00]} 44. Kf2 {[%emt 0:00:21]} Rxc3 {[%emt 0:00:00]} 45. Nxe6+ {[%emt 0:00:06]} Kf6 {[%emt 0:00:00]} 46. Nd4 {[%emt 0:00:25]} Be8 {[%emt 0:00:00]} 47. Re1 {[%emt 0:00:17]} Kf7 {[%emt 0:00:00]} 48. Rh1 {[%emt 0:03:29]} Kg7 {[%emt 0:01:19]} 49. Re1 {[%emt 0:00:04]} Kf7 {[%emt 0:02:22]} 50. Re6 {[%emt 0:04:12]} Rxc2+ {[%emt 0:00:25]} 51. Nxc2 {[%emt 0:00:14]} Kxe6 {[%emt 0:00:04]} 52. Ke3 {[%emt 0:00:10]} Kf5 {[%emt 0:01:22]} 53. Nd4+ {[%emt 0:01:30]} Kg4 {[%emt 0:00:21]} 54. Nc2 {[%emt 0:00:01]} Bd7 {[%emt 0:00:19]} 55. Nb4 {[%emt 0:00:39]} d4+ {[%emt 0:00:21]} 56. Kxd4 {[%emt 0:00:05]} Kxf4 {[%emt 0:00:04]} 57. Nd5+ {[%emt 0:00:44]} Kf3 {[%emt 0:00:06]} 58. Nf6 {[%emt 0:00:23]} Be6 {[%emt 0:00:52]} 59. Ne4 {[%emt 0:00:07]} Kf4 {[%emt 0:00:09]} 60. Nc5 {[%emt 0:00:23]} Bg8 {[%emt 0:00:04]} 61. Ne4 {[%emt 0:01:02]} g5 {[%emt 0:00:28]} 62. Nd6 {[%emt 0:00:09]} g4 {[%emt 0:00:12]} 63. Nxb5 {[%emt 0:00:06]} g3 {[%emt 0:00:02]} 64. Nc3 {[%emt 0:09:53]} 0-1

[Event "FIDE World Cup O12-B 2024"]
[Site "Batumi"]
[Date "2024.06.23"]
[Round "1.4"]
[White "Amangeldy, Ramazan"]
[Black "Tatvidze, Davit"]
[Result "0-1"]
[ECO "D02"]
[WhiteElo "1740"]
[BlackElo "2000"]
[Annotator "NA RC"]
[PlyCount "115"]
[EventDate "2024.06.23"]
[EventType "swiss"]
[EventCountry "GEO"]
[SourceTitle "playchess.com"]
[Source "ChessBase"]
[SourceQuality "1"]
[TimeControl "5400+30"]

1. d4 {[%emt 0:00:24]} Nf6 {[%emt 0:00:51]} 2. Bf4 {[%emt 0:00:19]} d5 {[%emt 0:00:55]} 3. e3 {[%emt 0:00:06]} e6 {[%emt 0:00:46]} 4. Nd2 {[%emt 0:00:29]} c5 {[%emt 0:00:38]} 5. c3 {[%emt 0:00:07]} Nc6 {[%emt 0:00:30]} 6. Ngf3 {[%emt 0:00:17]} Be7 {[%emt 0:00:52]} 7. h3 {[%emt 0:00:16]} O-O {[%emt 0:00:25]} 8. Bd3 {[%emt 0:00:13]} Qb6 {[%emt 0:07:51]} 9. Rb1 {[%emt 0:00:24]} c4 {[%emt 0:04:23]} 10. Bc2 {[%emt 0:00:10]} Qa5 {[%emt 0:04:10]} 11. a3 {[%emt 0:00:24]} b5 {[%emt 0:01:02]} 12. e4 {[%emt 0:00:11]} dxe4 {[%emt 0:02:11]} 13. Nxe4 {[%emt 0:00:31]} Nxe4 {[%emt 0:09:50]} 14. Bxe4 {[%emt 0:00:10]} Bb7 {[%emt 0:00:06]} 15. h4 {[%emt 0:03:29]} f5 {[%emt 0:16:59]} 16. Bc2 {[%emt 0:04:39]} Bf6 {[%emt 0:11:02]} 17. O-O {[%emt 0:01:41]} Ne7 {[%emt 0:02:53]} 18. Re1 {[%emt 0:05:42]} Bd5 {[%emt 0:00:39]} 19. h5 {[%emt 0:00:41]} Qb6 {[%emt 0:05:18]} 20. Ne5 {[%emt 0:02:42]} Qb7 {[%emt 0:00:39]} 21. f3 {[%emt 0:00:16]} Nc6 {[%emt 0:02:25]} 22. Qe2 {[%emt 0:02:26]} a5 {[%emt 0:06:22]} 23. b3 {[%emt 0:01:32]} Nxe5 {[%emt 0:02:43]} 24. dxe5 {[%emt 0:00:18]} Be7 {[%emt 0:03:19]} 25. Kh1 {[%emt 0:02:03]} Qc6 {[%emt 0:01:38]} 26. b4 {[%emt 0:11:52]} axb4 {[%emt 0:00:30]} 27. axb4 {[%emt 0:00:04]} Qe8 {[%emt 0:01:23]} 28. h6 {[%emt 0:01:09]} Qh5+ {[%emt 0:04:10]} 29. Kg1 {[%emt 0:00:05]} g5 {[%emt 0:00:20]} 30. Bg3 {[%emt 0:00:20]} Qxh6 {[%emt 0:00:48]} 31. Ra1 {[%emt 0:00:12]} Qg6 {[%emt 0:01:54]} 32. Qf2 {[%emt 0:00:25]} Qe8 {[%emt 0:03:04]} 33. Qd4 {[%emt 0:01:32]} Qc6 {[%emt 0:01:12]} 34. Bf2 {[%emt 0:01:24]} h5 {[%emt 0:03:11]} 35. Red1 {[%emt 0:02:23]} g4 {[%emt 0:01:11]} 36. Rxa8 {[%emt 0:02:01]} Qxa8 {[%emt 0:00:10]} 37. Qf4 {[%emt 0:00:37]} gxf3 {[%emt 0:01:10]} 38. Qh6 {[%emt 0:00:24]} Rf7 {[%emt 0:00:12]} 39. Bxf5 {[%emt 0:03:20]} Rxf5 {[%emt 0:01:01]} 40. Qg6+ {[%emt 0:00:12]} Kf8 {[%emt 0:00:16]} 41. Be3 {[%emt 0:00:11]} Rf7 {[%emt 0:00:14]} 42. Bh6+ {[%emt 0:00:43]} Ke8 {[%emt 0:00:06]} 43. Qg8+ {[%emt 0:00:06]} Bf8 {[%emt 0:00:07]} 44. Bxf8 {[%emt 0:00:40]} Rxf8 {[%emt 0:00:08]} 45. Qg6+ {[%emt 0:00:02]} Ke7 {[%emt 0:00:57]} 46. Qg5+ {[%emt 0:00:07]} Kd7 {[%emt 0:00:51]} 47. Qg7+ {[%emt 0:00:07]} Kc6 {[%emt 0:00:36]} 48. Qe7 {[%emt 0:00:07]} Qd8 {[%emt 0:01:20]} 49. Qc5+ {[%emt 0:02:09]} Kb7 {[%emt 0:00:21]} 50. Kh2 {[%emt 0:00:06]} Qh4+ {[%emt 0:00:23]} 51. Kg1 {[%emt 0:00:01]} f2+ {[%emt 0:00:15]} 52. Kf1 {[%emt 0:00:06]} Qh1+ {[%emt 0:00:20]} 53. Ke2 {[%emt 0:00:04]} f1=Q+ {[%emt 0:00:21]} 54. Rxf1 {[%emt 0:00:15]} Qxf1+ {[%emt 0:00:00]} 55. Kd2 {[%emt 0:00:07]} Qd3+ {[%emt 0:00:00]} 56. Kc1 {[%emt 0:00:04]} Rf1+ {[%emt 0:00:00]} 57. Kb2 {[%emt 0:00:04]} Qb1+ {[%emt 0:04:02]} 58. Ka3 {[%emt 0:00:16]} 0-1

[Event "FIDE World Cup O12-B 2024"]
[Site "Batumi"]
[Date "2024.06.23"]
[Round "1.5"]
[White "Pirtac, Alexandru"]
[Black "Batbaatar, Baatar"]
[Result "0-1"]
[ECO "B87"]
[WhiteElo "1977"]
[BlackElo "1724"]
[Annotator "NA RC"]
[PlyCount "118"]
[EventDate "2024.06.23"]
[EventType "swiss"]
[EventCountry "GEO"]
[SourceTitle "playchess.com"]
[Source "ChessBase"]
[SourceQuality "1"]
[TimeControl "5400+30"]

1. e4 {[%emt 0:00:02]} c5 {[%emt 0:00:05]} 2. Nf3 {[%emt 0:01:09]} d6 {[%emt 0:00:10]} 3. d4 {[%emt 0:00:09]} cxd4 {[%emt 0:00:15]} 4. Nxd4 {[%emt 0:00:13]} Nf6 {[%emt 0:00:11]} 5. Nc3 {[%emt 0:00:11]} a6 {[%emt 0:00:06]} 6. Bc4 {[%emt 0:00:25]} e6 {[%emt 0:00:57]} 7. Bb3 {[%emt 0:00:06]} b5 {[%emt 0:00:34]} 8. O-O {[%emt 0:00:13]} Nbd7 {[%emt 0:06:31]} 9. a4 {[%emt 0:02:44]} b4 {[%emt 0:04:08]} 10. Na2 {[%emt 0:01:22]} Nc5 {[%emt 0:08:30]} 11. Nxb4 {[%emt 0:01:51]} Qb6 {[%emt 0:02:16]} 12. c3 {[%emt 0:05:30]} a5 {[%emt 0:05:54]} 13. Nd3 {[%emt 0:00:12]} Nxb3 {[%emt 0:00:07]} 14. Nxb3 {[%emt 0:00:11]} Nxe4 {[%emt 0:00:56]} 15. Be3 {[%emt 0:01:20]} Qb7 {[%emt 0:02:36]} 16. Nd4 {[%emt 0:00:49]} Be7 {[%emt 0:01:18]} 17. Nb5 {[%emt 0:04:19]} O-O {[%emt 0:04:54]} 18. Nf4 {[%emt 0:00:08]} d5 {[%emt 0:02:20]} 19. Bd4 {[%emt 0:03:49]} Bd7 {[%emt 0:04:49]} 20. Re1 {[%emt 0:02:37]} f6 {[%emt 0:10:11]} 21. f3 {[%emt 0:00:39]} Nc5 {[%emt 0:02:01]} 22. Kh1 {[%emt 0:03:29]} Ra6 {[%emt 0:07:23]} 23. Qe2 {[%emt 0:07:40]} Rc8 {[%emt 0:03:52]} 24. Bxc5 {[%emt 0:05:46]} Rxc5 {[%emt 0:02:38]} 25. Rad1 {[%emt 0:03:00]} Bf8 {[%emt 0:02:20]} 26. b3 {[%emt 0:04:17]} Rb6 {[%emt 0:05:08]} 27. Qf2 {[%emt 0:02:11]} Ra6 {[%emt 0:05:54]} 28. Qg3 {[%emt 0:02:36]} e5 {[%emt 0:02:32]} 29. Nd3 {[%emt 0:02:01]} Rc8 {[%emt 0:00:35]} 30. h4 {[%emt 0:10:09]} Bxb5 {[%emt 0:01:05]} 31. axb5 {[%emt 0:00:07]} Qxb5 {[%emt 0:00:09]} 32. h5 {[%emt 0:01:40]} Rxc3 {[%emt 0:00:34]} 33. Nxe5 {[%emt 0:01:01]} fxe5 {[%emt 0:00:24]} 34. Qxe5 {[%emt 0:01:01]} Rc5 {[%emt 0:01:35]} 35. Qg5 {[%emt 0:02:08]} d4 {[%emt 0:00:47]} 36. Qd8 {[%emt 0:00:09]} Rxh5+ {[%emt 0:00:18]} 37. Kg1 {[%emt 0:00:08]} Qb6 {[%emt 0:00:23]} 38. Qe8 {[%emt 0:01:55]} d3+ {[%emt 0:01:24]} 39. Re3 {[%emt 0:00:14]} Rh6 {[%emt 0:00:29]} 40. Rdxd3 {[%emt 0:01:10]} Re6 {[%emt 0:00:35]} 41. Qxe6+ {[%emt 0:01:17]} Qxe6 {[%emt 0:00:05]} 42. Rxe6 {[%emt 0:00:11]} Rxe6 {[%emt 0:00:08]} 43. Kh2 {[%emt 0:00:36]} Bd6+ {[%emt 0:00:51]} 44. g3 {[%emt 0:00:32]} Re2+ {[%emt 0:00:17]} 45. Kh3 {[%emt 0:00:20]} Bb4 {[%emt 0:00:23]} 46. Kg4 {[%emt 0:00:32]} Re5 {[%emt 0:01:14]} 47. f4 {[%emt 0:00:14]} Rc5 {[%emt 0:00:11]} 48. f5 {[%emt 0:00:42]} Rc3 {[%emt 0:00:35]} 49. Rd7 {[%emt 0:00:28]} Rxb3 {[%emt 0:00:27]} 50. Kf4 {[%emt 0:00:15]} Bf8 {[%emt 0:00:18]} 51. g4 {[%emt 0:01:12]} Rb4+ {[%emt 0:00:09]} 52. Kg5 {[%emt 0:00:16]} a4 {[%emt 0:00:15]} 53. Ra7 {[%emt 0:01:05]} Re4 {[%emt 0:00:31]} 54. Kh5 {[%emt 0:02:04]} Be7 {[%emt 0:01:52]} 55. Ra8+ {[%emt 0:01:47]} Kf7 {[%emt 0:00:10]} 56. Ra7 {[%emt 0:00:15]} g6+ {[%emt 0:00:41]} 57. fxg6+ {[%emt 0:01:35]} hxg6+ {[%emt 0:00:26]} 58. Kh6 {[%emt 0:00:36]} Rxg4 {[%emt 0:00:10]} 59. Ra5 {[%emt 0:03:50]} Rh4+ {[%emt 0:01:11]} 0-1

[Event "FIDE World Cup O12-B 2024"]
[Site "Batumi"]
[Date "2024.06.23"]
[Round "1.6"]
[White "Golikov, Ivan"]
[Black "Gabadadze, Gabriel"]
[Result "0-1"]
[ECO "A36"]
[WhiteElo "1723"]
[BlackElo "1975"]
[Annotator "NA RC"]
[PlyCount "130"]
[EventDate "2024.06.23"]
[EventType "swiss"]
[EventCountry "GEO"]
[SourceTitle "playchess.com"]
[Source "ChessBase"]
[SourceQuality "1"]
[TimeControl "5400+30"]

1. c4 {[%emt 0:00:02]} c5 {[%emt 0:00:21]} 2. Nc3 {[%emt 0:00:10]} Nc6 {[%emt 0:00:08]} 3. g3 {[%emt 0:00:08]} g6 {[%emt 0:00:17]} 4. Bg2 {[%emt 0:00:11]} Bg7 {[%emt 0:00:19]} 5. a3 {[%emt 0:00:13]} e6 {[%emt 0:05:34]} 6. Rb1 {[%emt 0:00:25]} Nge7 {[%emt 0:10:34]} 7. b4 {[%emt 0:05:58]} cxb4 {[%emt 0:02:35]} 8. axb4 {[%emt 0:00:09]} d6 {[%emt 0:02:44]} 9. e3 {[%emt 0:08:59]} a5 {[%emt 0:12:27]} 10. Na2 {[%emt 0:25:51]} axb4 {[%emt 0:04:29]} 11. Nxb4 {[%emt 0:53:54]} Nxb4 {[%emt 0:05:48]} 12. Rxb4 {[%emt 0:00:00]} Qd7 {[%emt 0:06:05]} 13. Ne2 {[%emt 0:00:00]} Nc6 {[%emt 0:02:12]} 14. Rb1 {[%emt 0:00:00]} O-O {[%emt 0:03:10]} 15. O-O {[%emt 0:00:00]} Qc7 {[%emt 0:02:41]} 16. Bb2 {[%emt 0:00:00]} Bd7 {[%emt 0:03:54]} 17. Bxg7 {[%emt 0:00:00]} Kxg7 {[%emt 0:00:03]} 18. Qb3 {[%emt 0:00:00]} Rfb8 {[%emt 0:03:32]} 19. Rfc1 {[%emt 0:00:00]} Ra7 {[%emt 0:05:32]} 20. Nc3 {[%emt 0:00:00]} Na5 {[%emt 0:03:05]} 21. Qb4 {[%emt 0:00:00]} Ra6 {[%emt 0:04:02]} 22. Nb5 {[%emt 0:00:00]} Qb6 {[%emt 0:01:50]} 23. h4 {[%emt 0:00:00]} e5 {[%emt 0:02:48]} 24. d4 {[%emt 0:00:00]} exd4 {[%emt 0:01:50]} 25. exd4 {[%emt 0:00:00]} Rc8 {[%emt 0:01:59]} 26. Bd5 {[%emt 0:00:00]} Bf5 {[%emt 0:01:45]} 27. Ra1 {[%emt 0:00:00]} Rd8 {[%emt 0:02:56]} 28. Bg2 {[%emt 0:01:25]} Nc6 {[%emt 0:01:33]} 29. Qc3 {[%emt 0:00:45]} Rxa1 {[%emt 0:00:52]} 30. Rxa1 {[%emt 0:00:31]} Kg8 {[%emt 0:00:29]} 31. Qe3 {[%emt 0:00:48]} Kg7 {[%emt 0:02:12]} 32. Qf4 {[%emt 0:01:56]} Na5 {[%emt 0:02:37]} 33. Bd5 {[%emt 0:01:35]} Be6 {[%emt 0:01:20]} 34. Qe4 {[%emt 0:02:20]} Bxd5 {[%emt 0:01:03]} 35. Qxd5 {[%emt 0:00:08]} Nc6 {[%emt 0:00:54]} 36. Re1 {[%emt 0:00:39]} Nb4 {[%emt 0:04:50]} 37. Qg5 {[%emt 0:01:05]} h6 {[%emt 0:00:00]} 38. Qe7 {[%emt 0:00:42]} Nc6 {[%emt 0:00:00]} 39. Qe2 {[%emt 0:00:26]} Qa5 {[%emt 0:00:00]} 40. Rc1 {[%emt 0:00:56]} Qb4 {[%emt 0:00:00]} 41. Qe3 {[%emt 0:00:45]} Qb2 {[%emt 0:01:38]} 42. Qf4 {[%emt 0:00:44]} d5 {[%emt 0:00:36]} 43. Re1 {[%emt 0:00:35]} dxc4 {[%emt 0:00:42]} 44. Nd6 {[%emt 0:00:29]} Rxd6 {[%emt 0:00:30]} 45. Qxd6 {[%emt 0:00:05]} Qxd4 {[%emt 0:00:21]} 46. Qxd4+ {[%emt 0:00:45]} Nxd4 {[%emt 0:00:01]} 47. Rd1 {[%emt 0:00:32]} Nc6 {[%emt 0:00:57]} 48. Rb1 {[%emt 0:00:40]} c3 {[%emt 0:00:43]} 49. Rb3 {[%emt 0:00:38]} Nd4 {[%emt 0:00:21]} 50. Rxb7 {[%emt 0:00:20]} c2 {[%emt 0:00:08]} 51. Rc7 {[%emt 0:00:09]} Ne2+ {[%emt 0:00:07]} 52. Kg2 {[%emt 0:00:12]} c1=Q {[%emt 0:00:06]} 53. Rxc1 {[%emt 0:00:06]} Nxc1 {[%emt 0:00:01]} 54. Kf3 {[%emt 0:00:21]} Nd3 {[%emt 0:00:16]} 55. Ke3 {[%emt 0:00:08]} Ne5 {[%emt 0:00:07]} 56. Kf4 {[%emt 0:00:27]} Kf6 {[%emt 0:00:20]} 57. f3 {[%emt 0:01:20]} g5+ {[%emt 0:01:01]} 58. hxg5+ {[%emt 0:00:13]} hxg5+ {[%emt 0:00:05]} 59. Ke4 {[%emt 0:00:27]} Ke6 {[%emt 0:00:34]} 60. f4 {[%emt 0:00:53]} f5+ {[%emt 0:00:13]} 61. Ke3 {[%emt 0:00:10]} gxf4+ {[%emt 0:00:30]} 62. Kxf4 {[%emt 0:00:05]} Kf6 {[%emt 0:00:14]} 63. Ke3 {[%emt 0:00:08]} Kg5 {[%emt 0:00:07]} 64. Kf2 {[%emt 0:00:07]} Kg4 {[%emt 0:00:07]} 65. Kg2 {[%emt 0:00:03]} Nd3 {[%emt 0:00:12]} 0-1

[Event "FIDE World Cup O12-B 2024"]
[Site "Batumi"]
[Date "2024.06.23"]
[Round "1.7"]
[White "Minkhajdarov, Ruslan"]
[Black "Amreyev, Azat"]
[Result "0-1"]
[ECO "C18"]
[WhiteElo "1921"]
[BlackElo "1704"]
[Annotator "NA RC"]
[PlyCount "66"]
[EventDate "2024.06.23"]
[EventType "swiss"]
[EventCountry "GEO"]
[SourceTitle "playchess.com"]
[Source "ChessBase"]
[SourceQuality "1"]
[TimeControl "5400+30"]

1. e4 {[%emt 0:00:03]} e6 {[%emt 0:00:34]} 2. d4 {[%emt 0:00:12]} d5 {[%emt 0:00:08]} 3. Nc3 {[%emt 0:00:09]} Bb4 {[%emt 0:00:15]} 4. e5 {[%emt 0:00:11]} c5 {[%emt 0:00:07]} 5. a3 {[%emt 0:00:08]} Bxc3+ {[%emt 0:00:23]} 6. bxc3 {[%emt 0:00:02]} Ne7 {[%emt 0:00:19]} 7. Qg4 {[%emt 0:02:01]} Qc7 {[%emt 0:01:30]} 8. Bd3 {[%emt 0:00:39]} cxd4 {[%emt 0:02:13]} 9. Ne2 {[%emt 0:01:12]} dxc3 {[%emt 0:01:23]} 10. Qxg7 {[%emt 0:00:31]} Rg8 {[%emt 0:00:11]} 11. Qxh7 {[%emt 0:00:08]} Nbc6 {[%emt 0:02:06]} 12. f4 {[%emt 0:26:28]} Bd7 {[%emt 0:07:41]} 13. g3 {[%emt 0:31:09]} O-O-O {[%emt 0:03:59]} 14. Qh5 {[%emt 0:01:49]} Rh8 {[%emt 0:10:55]} 15. Qf3 {[%emt 0:01:41]} d4 {[%emt 0:07:02]} 16. Rb1 {[%emt 0:06:18]} Nd5 {[%emt 0:12:32]} 17. Qf2 {[%emt 0:15:24]} Kb8 {[%emt 0:04:37]} 18. O-O {[%emt 0:05:59]} Rh3 {[%emt 0:04:52]} 19. Qf3 {[%emt 0:03:02]} Rdh8 {[%emt 0:01:02]} 20. Rf2 {[%emt 0:00:01]} f5 {[%emt 0:04:03]} 21. Bxf5 {[%emt 0:01:47]} exf5 {[%emt 0:02:50]} 22. Qxd5 {[%emt 0:00:01]} Rd8 {[%emt 0:00:27]} 23. a4 {[%emt 0:01:44]} Bc8 {[%emt 0:03:34]} 24. Qc4 {[%emt 0:00:01]} Ka8 {[%emt 0:04:05]} 25. Ba3 {[%emt 0:00:02]} Qh7 {[%emt 0:00:49]} 26. Bd6 {[%emt 0:00:40]} a6 {[%emt 0:01:38]} 27. Qd5 {[%emt 0:01:36]} Rh8 {[%emt 0:00:56]} 28. Qg2 {[%emt 0:00:12]} Qf7 {[%emt 0:00:23]} 29. Qf3 {[%emt 0:00:52]} Be6 {[%emt 0:00:14]} 30. Rd1 {[%emt 0:00:44]} Bd5 {[%emt 0:00:12]} 31. Qd3 {[%emt 0:00:01]} Be4 {[%emt 0:00:10]} 32. Qxe4 {[%emt 0:00:54]} fxe4 {[%emt 0:00:06]} 33. Nxd4 {[%emt 0:00:08]} Qd5 {[%emt 0:00:14]} 0-1